lending/lending_fUSD_20251121
["ID","MTS","AMOUNT","RATE_DAILY","PERIOD"]
[394599211,1763747818709,-500.0,0.00052876,120]
[394599212,1763747818748,-2472.18,0.00052876,120]
[394599213,1763747818792,-500.0,0.00052876,120]
[394599214,1763747818831,-562.31,0.00052876,120]
[394599215,1763747818873,-1095.82,0.00052876,120]
[394599216,1763747818913,-500.0,0.00052876,120]
[394599217,1763747818952,-500.0,0.00052876,120]
[394599218,1763747818989,-997.78,0.00052876,120]
[394599219,1763747819029,-500.0,0.00052876,120]
[394599220,1763747819067,-500.0,0.00052876,120]
[394599221,1763747819103,-500.0,0.00052876,120]
[394599222,1763747819143,-536.42069231,0.00052876,120]
[394599223,1763747819180,-500.0,0.00052876,120]
[394599224,1763747819216,-500.0,0.00052876,120]
[394599225,1763747819253,-500.0,0.00052876,120]
[394599226,1763747819291,-500.0,0.00052876,120]
[394599227,1763747819330,-725.52,0.00052876,120]
[394599228,1763747819369,-500.0,0.00052876,120]
[394599229,1763747819406,-500.0,0.00052876,120]
[394599230,1763747819455,-742.03,0.00052876,120]
[394599231,1763747819499,-500.0,0.00052876,120]
[394599232,1763747819540,-500.0,0.00052876,120]
[394599233,1763747819581,-500.0,0.00052876,120]
[394599234,1763747819621,-1752.44,0.00052876,120]
[394599235,1763747819661,-500.0,0.00052876,120]
[394599236,1763747819702,-183.89766202,0.00052876,120]
[394599237,1763747819741,-500.0,0.00052876,120]
[394599238,1763747819781,-500.0,0.00052876,120]
[394599239,1763747819821,-500.0,0.00052876,120]
[394599240,1763747819860,-500.0,0.00052876,120]
[394599241,1763747819900,-505.94710148,0.00052876,120]
[394599242,1763747819939,-523.83,0.00052876,120]
[394599243,1763747819979,-500.0,0.00052876,120]
[394599244,1763747820016,-500.0,0.00052876,120]
[394599245,1763747820059,-1610.76,0.00052876,120]
[394599246,1763747820098,-500.0,0.00052876,120]
[394599247,1763747820140,-500.0,0.00052876,120]
[394599248,1763747820182,-500.0,0.00052876,120]
[394599249,1763747820223,-500.0,0.00052876,120]
[394599250,1763747820270,-500.0,0.00052876,120]
[394599251,1763747820316,-1316.99,0.00052876,120]
[394599252,1763747820358,-526.62,0.00052876,120]
[394599253,1763747820400,-1262.41,0.00052876,120]
[394599254,1763747820441,-624.9,0.00052876,120]
[394599255,1763747820483,-500.0,0.00052876,120]
[394599256,1763747820525,-609.61952884,0.00052876,120]
[394599257,1763747820567,-500.0,0.00052876,120]
[394599258,1763747820609,-1077.55,0.00052876,120]
[394599259,1763747820649,-500.0,0.00052876,120]
[394599260,1763747820690,-511.18,0.00052876,120]
[394599261,1763747820731,-1189.13,0.00052876,120]
[394599262,1763747820769,-1015.18,0.00052876,120]
[394599263,1763747820806,-500.0,0.00052876,120]
[394599264,1763747820845,-500.0,0.00052876,120]
[394599265,1763747820883,-731.57,0.00052876,120]
[394599266,1763747820921,-500.0,0.00052876,120]
[394599267,1763747820960,-500.0,0.00052876,120]
[394599268,1763747820998,-411.48253704,0.00052876,120]
[394599269,1763747821036,-500.0,0.00052876,120]
[394599270,1763747821072,-500.0,0.00052876,120]
[394599271,1763747821107,-500.0,0.00052876,120]
[394599272,1763747821148,-500.0,0.00052876,120]
[394599273,1763747821185,-500.0,0.00052876,120]
[394599274,1763747821223,-239.4855948,0.00052876,120]
[394599275,1763747821261,-624.1994155,0.00052876,120]
[394599276,1763747821302,-500.0,0.00052876,120]
[394599277,1763747821345,-1000.00000003,0.000529,30]
[394599278,1763747821386,-1738.40715703,0.000529,120]
[394599279,1763747821428,-176.0,0.000529,120]
[394599280,1763747821469,-1000.0,0.00052999,120]
[394599281,1763747821511,-512.60037667,0.00053,120]
[394599282,1763747821553,-150.0,0.00053,120]
[394599283,1763747821595,-11612.0,0.00053,120]
[394599284,1763747821831,-300000.0,0.00053,90]
[394599285,1763747821877,-3491.4082765,0.00053,100]
[394599286,1763747821927,-5000.0,0.00053,30]
[394599287,1763747821970,-35000.0,0.0005301,120]
[394599288,1763747822014,-1232.94,0.00053137,90]
[394599289,1763747822062,-1232.94,0.00053137,90]
[394599290,1763747822101,-2000.0,0.0005315,30]
[394599291,1763747822139,-500.0,0.0005315,120]
[394599292,1763747822178,-500.0,0.0005315,120]
[394599293,1763747822219,-500.0,0.0005315,120]
[394599294,1763747822260,-1000.0,0.0005315,120]
[394599295,1763747822300,-500.0,0.0005315,120]
[394599296,1763747822342,-500.0,0.0005315,120]
[394599297,1763747822379,-500.0,0.0005315,120]
[394599298,1763747822420,-472.0,0.0005315,120]
[394599299,1763747822460,-500.0,0.0005315,120]
[394599300,1763747822501,-500.0,0.0005315,120]
[394599301,1763747822539,-500.0,0.0005315,120]
[394599302,1763747822581,-500.0,0.0005315,120]
[394599303,1763747822618,-514.45392564,0.0005315,120]
[394599304,1763747822654,-500.0,0.0005315,120]
[394599305,1763747822690,-500.0,0.0005315,120]
[394599306,1763747822725,-500.0,0.0005315,120]
[394599307,1763747822760,-500.0,0.0005315,120]
[394599308,1763747822795,-649.76,0.0005315,120]
[394599309,1763747822832,-1504.61,0.0005315,120]
[394599310,1763747822870,-1108.34,0.0005315,120]
[394599311,1763747822907,-500.0,0.0005315,120]
[394599312,1763747822943,-1186.86,0.0005315,120]
[394599313,1763747822980,-480.56385914,0.0005315,120]
[394599314,1763747823017,-500.0,0.0005315,120]
[394599315,1763747823055,-500.0,0.0005315,120]
[394599316,1763747823096,-261.6,0.0005315,120]
[394599317,1763747823134,-500.0,0.0005315,120]
[394599318,1763747823173,-500.0,0.0005315,120]
[394599319,1763747823212,-500.0,0.0005315,120]
[394599320,1763747823251,-1259.12,0.0005315,120]
[394599321,1763747823291,-500.0,0.0005315,120]
[394599322,1763747823333,-500.0,0.0005315,120]
[394599323,1763747823375,-500.0,0.0005315,120]
[394599324,1763747823417,-500.0,0.0005315,120]
[394599325,1763747823466,-500.0,0.0005315,120]
[394599326,1763747823516,-987.47,0.0005315,120]
[394599327,1763747823567,-749.7,0.0005315,120]
[394599328,1763747823615,-229.48173245,0.0005315,120]
[394599329,1763747823663,-500.0,0.0005315,120]
[394599330,1763747823707,-500.0,0.0005315,120]
[394599331,1763747823753,-500.0,0.0005315,120]
[394599332,1763747823797,-500.0,0.0005315,120]
[394599333,1763747823841,-500.0,0.0005315,120]
[394599334,1763747823883,-500.0,0.0005315,120]
[394599335,1763747823927,-757.04,0.0005315,120]
[394599336,1763747823969,-500.0,0.0005315,120]
[394599337,1763747824008,-640.53,0.0005315,120]
[394599338,1763747824048,-500.0,0.0005315,120]
[394599339,1763747824087,-500.0,0.0005315,120]
[394599340,1763747824125,-500.0,0.0005315,120]
[394599341,1763747824163,-500.0,0.0005315,120]
[394599342,1763747824204,-606.66,0.0005315,120]
[394599343,1763747824247,-500.0,0.0005315,120]
[394599344,1763747824287,-500.0,0.0005315,120]
[394599345,1763747824327,-500.0,0.0005315,120]
[394599346,1763747824366,-500.0,0.0005315,120]
[394599347,1763747824407,-500.0,0.0005315,120]
[394599348,1763747824445,-500.0,0.0005315,120]
[394599349,1763747824489,-500.0,0.0005315,120]
[394599350,1763747824531,-844.19,0.0005315,120]
[394599351,1763747824575,-939.26,0.0005315,60]
[394599352,1763747824617,-500.0,0.0005315,120]
[394599353,1763747824658,-1476.41,0.0005315,120]
[394599354,1763747824698,-500.0,0.0005315,120]
[394599355,1763747824739,-885.49,0.0005315,120]
[394599356,1763747824778,-500.0,0.0005315,120]
[394599357,1763747824819,-500.0,0.0005315,120]
[394599358,1763747824859,-605.14,0.0005315,120]
[394599359,1763747824904,-500.0,0.0005315,120]
[394599360,1763747824949,-500.0,0.0005315,120]
[394599361,1763747824990,-635.71,0.0005315,120]
[394599362,1763747825030,-500.0,0.0005315,120]
[394599363,1763747825070,-500.0,0.0005315,120]
[394599364,1763747825109,-886.24,0.0005315,120]
[394599365,1763747825147,-973.25,0.0005315,120]
[394599366,1763747825186,-910.07,0.0005315,120]
[394599367,1763747825225,-500.0,0.0005315,120]
[394599368,1763747825265,-903.3,0.0005315,120]
[394599369,1763747825303,-500.0,0.0005315,120]
[394599370,1763747825344,-500.0,0.0005315,120]
[394599371,1763747825385,-500.0,0.0005315,120]
[394599372,1763747825429,-500.0,0.0005315,120]
[394599373,1763747825629,-500.0,0.0005315,120]
[394599374,1763747825685,-278.77873955,0.0005315,120]
[394599375,1763747825728,-547.91532465,0.0005315,120]
[394599376,1763747825769,-504.84410555,0.0005315,120]
[394599377,1763747825810,-500.0,0.0005315,120]
[394599378,1763747825852,-175.61873122,0.0005315,120]
[394599379,1763747825894,-411.47262216,0.0005315,120]
[394599380,1763747825934,-500.0,0.0005315,120]
[394599381,1763747825973,-625.14244147,0.0005315,120]
[394599382,1763747826013,-931.08,0.0005315,120]
[394599383,1763747826053,-500.0,0.0005315,120]
[394599384,1763747826092,-500.0,0.0005315,120]
[394599385,1763747826132,-500.0,0.0005315,120]
[394599386,1763747826169,-677.66,0.0005315,120]
[394599387,1763747826208,-500.0,0.0005315,120]
[394599388,1763747826247,-500.0,0.0005315,120]
[394599389,1763747826287,-500.0,0.0005315,120]
[394599390,1763747826327,-210.88035941,0.0005315,120]
[394599391,1763747826366,-500.0,0.0005315,120]
[394599392,1763747826406,-1089.8,0.0005315,120]
[394599393,1763747826448,-600.17,0.0005315,120]
[394599394,1763747826490,-500.0,0.0005315,120]
[394599395,1763747826537,-500.0,0.0005315,120]
[394599396,1763747826584,-500.0,0.0005315,120]
[394599397,1763747826628,-528.23,0.0005315,120]
[394599398,1763747826673,-896.01,0.0005315,120]
[394599399,1763747826716,-500.0,0.0005315,120]
[394599400,1763747826759,-1060.14,0.0005315,120]
[394599401,1763747826803,-513.05130445,0.0005315,120]
[394599402,1763747826847,-853.65,0.0005315,120]
[394599403,1763747826889,-418.77499398,0.0005315,120]
[394599404,1763747826930,-500.0,0.0005315,120]
[394599405,1763747826970,-1172.32,0.0005315,120]
[394599406,1763747827010,-892.68,0.0005315,120]
[394599407,1763747827050,-500.0,0.0005315,120]
[394599408,1763747827092,-226.50054061,0.0005315,120]
[394599409,1763747827135,-683.37,0.0005315,120]
[394599410,1763747827179,-1066.61,0.0005315,120]
[394599411,1763747827221,-500.0,0.0005315,120]
[394599412,1763747827261,-1328.68,0.0005315,120]
[394599413,1763747827303,-500.0,0.0005315,120]
[394599414,1763747827351,-500.0,0.0005315,120]
[394599415,1763747827395,-604.26,0.0005315,120]
[394599416,1763747827442,-893.09,0.0005315,120]
[394599417,1763747827487,-500.0,0.0005315,120]
[394599418,1763747827534,-726.62,0.0005315,120]
[394599419,1763747827581,-500.0,0.0005315,120]
[394599420,1763747827625,-1129.7,0.0005315,120]
[394599421,1763747827670,-500.0,0.0005315,120]
[394599422,1763747827714,-500.0,0.0005315,120]
[394599423,1763747827756,-500.0,0.0005315,120]
[394599424,1763747827800,-418.08604593,0.0005315,120]
[394599425,1763747827844,-500.0,0.0005315,120]
[394599426,1763747827887,-500.0,0.0005315,120]
[394599427,1763747827931,-500.0,0.0005315,120]
[394599428,1763747827976,-500.0,0.0005315,120]
[394599429,1763747828018,-500.0,0.0005315,120]
[394599430,1763747828062,-500.0,0.0005315,120]
[394599431,1763747828105,-502.19,0.0005315,120]
[394599432,1763747828148,-500.0,0.0005315,120]
[394599433,1763747828192,-500.0,0.0005315,120]
[394599434,1763747828239,-500.0,0.0005315,120]
[394599435,1763747828290,-500.0,0.0005315,120]
[394599436,1763747828345,-742.48,0.0005315,120]
[394599437,1763747828392,-500.0,0.0005315,120]
[394599438,1763747828436,-1058.02,0.0005315,120]
[394599439,1763747828480,-500.0,0.0005315,120]
[394599440,1763747828530,-609.86,0.0005315,120]
[394599441,1763747828576,-393.77767587,0.0005315,120]
[394599442,1763747828621,-500.0,0.0005315,120]
[394599443,1763747828664,-634.62,0.0005315,120]
[394599444,1763747828706,-500.0,0.0005315,120]
[394599445,1763747828746,-500.0,0.0005315,120]
[394599446,1763747828785,-500.0,0.0005315,120]
[394599447,1763747828827,-500.0,0.0005315,120]
[394599448,1763747828874,-561.29643506,0.0005315,120]
[394599449,1763747828921,-859.12,0.0005315,120]
[394599450,1763747828961,-500.0,0.0005315,120]
[394599451,1763747829003,-500.0,0.0005315,120]
[394599452,1763747829046,-500.0,0.0005315,120]
[394599453,1763747829089,-672.89,0.0005315,120]
[394599454,1763747829131,-587.52051558,0.0005315,120]
[394599455,1763747829175,-500.0,0.0005315,120]
[394599456,1763747829218,-386.55660338,0.0005315,120]
[394599457,1763747829258,-500.0,0.0005315,120]
[394599458,1763747829300,-500.0,0.0005315,120]
[394599459,1763747829343,-500.0,0.0005315,120]
[394599460,1763747829539,-976.07,0.0005315,120]
[394599461,1763747829582,-1102.73,0.0005315,120]
[394599462,1763747829623,-500.0,0.0005315,120]
[394599463,1763747829664,-1200.73,0.0005315,120]
[394599464,1763747829705,-500.0,0.0005315,120]
[394599465,1763747829745,-1000.34,0.0005315,120]
[394599466,1763747829785,-1155.3,0.0005315,120]
[394599467,1763747829829,-500.0,0.0005315,120]
[394599468,1763747829871,-1052.15,0.0005315,120]
[394599469,1763747829911,-500.0,0.0005315,120]
[394599470,1763747829952,-760.56,0.0005315,120]
[394599471,1763747829993,-500.0,0.0005315,120]
[394599472,1763747830031,-500.0,0.0005315,120]
[394599473,1763747830069,-500.0,0.0005315,120]
[394599474,1763747830107,-1214.77,0.0005315,120]
[394599475,1763747830143,-584.94286277,0.0005315,120]
[394599476,1763747830180,-500.0,0.0005315,120]
[394599477,1763747830216,-260.80023991,0.0005315,120]
[394599478,1763747830252,-500.0,0.0005315,120]
[394599479,1763747830289,-1106.22,0.0005315,120]
[394599480,1763747830328,-543.29470052,0.0005315,120]
[394599481,1763747830368,-500.0,0.0005315,120]
[394599482,1763747830413,-500.0,0.0005315,120]
[394599483,1763747830455,-500.0,0.0005315,120]
[394599484,1763747830505,-500.0,0.0005315,120]
[394599485,1763747830549,-500.0,0.0005315,120]
[394599486,1763747830590,-500.0,0.0005315,120]
[394599487,1763747830630,-500.0,0.0005315,120]
[394599488,1763747830672,-414.04008257,0.0005315,120]
[394599489,1763747830715,-438.45709523,0.0005315,120]
[394599490,1763747830758,-500.0,0.0005315,120]
[394599491,1763747830800,-500.0,0.0005315,120]
[394599492,1763747830841,-500.0,0.0005315,120]
[394599493,1763747830881,-545.67865525,0.0005315,120]
[394599494,1763747830919,-500.0,0.0005315,120]
[394599495,1763747830956,-500.0,0.0005315,120]
[394599496,1763747830997,-500.0,0.0005315,120]
[394599497,1763747831047,-500.0,0.0005315,120]
[394599498,1763747831089,-500.0,0.0005315,120]
[394599499,1763747831134,-500.0,0.0005315,120]
[394599500,1763747831180,-500.0,0.0005315,120]
[394599501,1763747831219,-315.8079693,0.0005315,120]
[394599502,1763747831258,-503.1,0.0005315,120]
[394599503,1763747831298,-1170.16,0.0005315,120]
[394599504,1763747831337,-957.66,0.0005315,120]
[394599505,1763747831379,-159.56263096,0.0005315,120]
[394599506,1763747831420,-500.0,0.0005315,120]
[394599507,1763747831461,-500.0,0.0005315,120]
[394599508,1763747831504,-1000.0,0.0005315,120]
[394599509,1763747831548,-500.0,0.0005315,120]
[394599510,1763747831592,-500.0,0.0005315,120]
[394599511,1763747831636,-188.17187244,0.0005315,120]
[394599512,1763747831684,-2407.97,0.0005315,120]
[394599513,1763747831734,-500.0,0.0005315,120]
[394599514,1763747831783,-973.1,0.0005315,120]
[394599515,1763747831827,-500.0,0.0005315,120]
[394599516,1763747831869,-500.0,0.0005315,120]
[394599517,1763747831910,-878.4,0.0005315,120]
[394599518,1763747831951,-500.0,0.0005315,120]
[394599519,1763747831992,-500.0,0.0005315,120]
[394599520,1763747832035,-500.0,0.0005315,120]
[394599521,1763747832085,-500.0,0.0005315,120]
[394599522,1763747832130,-500.0,0.0005315,120]
[394599523,1763747832179,-500.0,0.0005315,120]
[394599524,1763747832222,-500.0,0.0005315,120]
[394599525,1763747832265,-610.7323906,0.0005315,120]
[394599526,1763747832308,-575.76,0.0005315,120]
[394599527,1763747832352,-500.0,0.0005315,120]
[394599528,1763747832401,-500.0,0.0005315,120]
[394599529,1763747832442,-873.91,0.0005315,120]
[394599530,1763747832482,-500.0,0.0005315,120]
[394599531,1763747832522,-500.0,0.0005315,120]
[394599532,1763747832562,-500.0,0.0005315,120]
[394599533,1763747832609,-500.0,0.0005315,120]
[394599534,1763747832652,-500.0,0.0005315,120]
[394599535,1763747832695,-500.0,0.0005315,120]
[394599536,1763747832738,-500.0,0.0005315,120]
[394599537,1763747832783,-1105.99,0.0005315,120]
[394599538,1763747832825,-500.0,0.0005315,120]
[394599539,1763747832865,-500.0,0.0005315,120]
[394599540,1763747832906,-500.0,0.0005315,120]
[394599541,1763747832947,-500.0,0.0005315,120]
[394599542,1763747833181,-845.17,0.0005315,120]
[394599543,1763747833234,-500.0,0.0005315,120]
[394599544,1763747833279,-500.0,0.0005315,120]
[394599545,1763747833328,-500.0,0.0005315,120]
[394599546,1763747833372,-513.56,0.0005315,120]
[394599547,1763747833415,-500.0,0.0005315,120]
[394599548,1763747833458,-500.0,0.0005315,120]
[394599549,1763747833504,-500.0,0.0005315,120]
[394599550,1763747833547,-500.0,0.0005315,120]
[394599551,1763747833607,-724.48,0.0005315,120]
[394599552,1763747833653,-500.0,0.0005315,120]
[394599553,1763747833696,-1506.7,0.0005315,60]
[394599554,1763747833738,-808.43,0.0005315,120]
[394599555,1763747833780,-277.27889989,0.0005315,120]
[394599556,1763747833822,-656.18,0.0005315,120]
[394599557,1763747833863,-929.35,0.0005315,120]
[394599558,1763747833905,-500.0,0.0005315,120]
[394599559,1763747833946,-690.86,0.0005315,120]
[394599560,1763747833990,-500.0,0.0005315,120]
[394599561,1763747834031,-546.34532885,0.0005315,120]
[394599562,1763747834071,-650.71,0.0005315,120]
[394599563,1763747834111,-500.0,0.0005315,120]
[394599564,1763747834150,-500.0,0.0005315,120]
[394599565,1763747834195,-500.0,0.0005315,120]
[394599566,1763747834236,-707.79,0.0005315,120]
[394599567,1763747834280,-468.43846529,0.0005315,120]
[394599568,1763747834323,-761.86,0.0005315,120]
[394599569,1763747834369,-500.0,0.0005315,120]
[394599570,1763747834414,-984.62,0.0005315,120]
[394599571,1763747834459,-693.27,0.0005315,120]
[394599572,1763747834506,-500.0,0.0005315,120]
[394599573,1763747834550,-500.0,0.0005315,30]
[394599574,1763747834594,-415.53871025,0.0005315,120]
[394599575,1763747834638,-500.0,0.0005315,120]
[394599576,1763747834681,-500.0,0.0005315,120]
[394599577,1763747834723,-1079.48,0.0005315,120]
[394599578,1763747834765,-500.0,0.0005315,120]
[394599579,1763747834805,-500.0,0.0005315,120]
[394599580,1763747834848,-500.0,0.0005315,120]
[394599581,1763747834891,-500.0,0.0005315,120]
[394599582,1763747834933,-509.36928897,0.0005315,120]
[394599583,1763747834974,-832.22,0.0005315,120]
[394599584,1763747835016,-500.0,0.0005315,120]
[394599585,1763747835056,-906.02,0.0005315,120]
[394599586,1763747835096,-553.23,0.0005315,120]
[394599587,1763747835134,-592.29,0.0005315,120]
[394599588,1763747835173,-500.0,0.0005315,120]
[394599589,1763747835213,-500.0,0.0005315,120]
[394599590,1763747835251,-462.30709016,0.0005315,120]
[394599591,1763747835288,-500.0,0.0005315,60]
[394599592,1763747835329,-500.0,0.0005315,120]
[394599593,1763747835371,-827.73,0.0005315,30]
[394599594,1763747835414,-500.0,0.0005315,120]
[394599595,1763747835458,-736.06,0.0005315,120]
[394599596,1763747835504,-500.0,0.0005315,120]
[394599597,1763747835549,-500.0,0.0005315,120]
[394599598,1763747835593,-1355.84,0.0005315,120]
[394599599,1763747835637,-500.0,0.0005315,120]
[394599600,1763747835681,-500.0,0.0005315,120]
[394599601,1763747835725,-500.0,0.0005315,120]
[394599602,1763747835767,-500.0,0.0005315,120]
[394599603,1763747835805,-560.4613378,0.0005315,120]
[394599604,1763747835845,-741.62,0.0005315,120]
[394599605,1763747835883,-600.55887673,0.0005315,120]
[394599606,1763747835925,-500.0,0.0005315,120]
[394599607,1763747835965,-946.76,0.0005315,120]
[394599608,1763747836003,-500.0,0.0005315,120]
[394599609,1763747836044,-1462.58,0.0005315,120]
[394599610,1763747836088,-602.44384166,0.0005315,120]
[394599611,1763747836135,-1132.61,0.0005315,120]
[394599612,1763747836181,-500.0,0.0005315,120]
[394599613,1763747836223,-500.0,0.0005315,120]
[394599614,1763747836273,-332.94217527,0.0005315,120]
[394599615,1763747836325,-500.0,0.0005315,120]
[394599616,1763747836373,-624.95579619,0.0005315,120]
[394599617,1763747836423,-500.0,0.0005315,120]
[394599618,1763747836468,-500.0,0.0005315,120]
[394599619,1763747836513,-1342.9,0.0005315,120]
[394599620,1763747836557,-720.54,0.0005315,120]
[394599621,1763747836605,-500.0,0.0005315,120]
[394599622,1763747836649,-500.0,0.0005315,120]
[394599623,1763747836875,-500.0,0.0005315,120]
[394599624,1763747836919,-500.0,0.0005315,120]
[394599625,1763747836960,-260.18913207,0.0005315,120]
[394599626,1763747836999,-727.09,0.0005315,120]
[394599627,1763747837036,-500.0,0.0005315,120]
[394599628,1763747837077,-500.0,0.0005315,120]
[394599629,1763747837117,-819.94,0.0005315,120]
[394599630,1763747837158,-1000.0,0.0005315,120]
[394599631,1763747837197,-1107.01,0.0005315,120]
[394599632,1763747837236,-855.69,0.0005315,120]
[394599633,1763747837274,-500.0,0.0005315,120]
[394599634,1763747837311,-500.0,0.0005315,120]
[394599635,1763747837349,-769.88,0.0005315,120]
[394599636,1763747837386,-723.27,0.0005315,120]
[394599637,1763747837423,-500.0,0.0005315,120]
[394599638,1763747837462,-500.0,0.0005315,120]
[394599639,1763747837504,-500.0,0.0005315,120]
[394599640,1763747837541,-500.0,0.0005315,120]
[394599641,1763747837583,-1304.3,0.0005315,120]
[394599642,1763747837626,-500.0,0.0005315,120]
[394599643,1763747837670,-724.08,0.0005315,120]
[394599644,1763747837712,-950.48,0.0005315,120]
[394599645,1763747837753,-500.0,0.0005315,120]
[394599646,1763747837802,-500.0,0.0005315,120]
[394599647,1763747837845,-528.28,0.0005315,120]
[394599648,1763747837888,-500.0,0.0005315,120]
[394599649,1763747837931,-901.14,0.0005315,120]
[394599650,1763747837973,-500.0,0.0005315,120]
[394599651,1763747838013,-500.0,0.0005315,120]
[394599652,1763747838052,-1573.04,0.0005315,120]
[394599653,1763747838092,-500.0,0.0005315,120]
[394599654,1763747838132,-1203.66,0.0005315,120]
[394599655,1763747838172,-500.0,0.0005315,120]
[394599656,1763747838214,-369.69633825,0.0005315,120]
[394599657,1763747838256,-500.0,0.0005315,120]
[394599658,1763747838297,-1601.91,0.0005315,120]
[394599659,1763747838337,-500.0,0.0005315,120]
[394599660,1763747838379,-500.0,0.0005315,120]
[394599661,1763747838425,-500.0,0.0005315,120]
[394599662,1763747838488,-666.68,0.0005315,120]
[394599663,1763747838562,-808.0,0.0005315,120]
[394599664,1763747838633,-500.0,0.0005315,120]
[394599665,1763747838704,-512.46940104,0.0005315,120]
[394599666,1763747838779,-500.0,0.0005315,120]
[394599667,1763747838840,-500.0,0.0005315,120]
[394599668,1763747838905,-1603.08,0.0005315,120]
[394599669,1763747838970,-500.0,0.0005315,120]
[394599670,1763747839036,-500.0,0.0005315,120]
[394599671,1763747839104,-751.13,0.0005315,120]
[394599672,1763747839169,-233.94338662,0.0005315,120]
[394599673,1763747839236,-500.0,0.0005315,120]
[394599674,1763747839300,-407.25024778,0.0005315,120]
[394599675,1763747839359,-500.0,0.0005315,120]
[394599676,1763747839422,-500.0,0.0005315,120]
[394599677,1763747839483,-500.0,0.0005315,120]
[394599678,1763747839545,-763.27,0.0005315,120]
[394599679,1763747839605,-500.0,0.0005315,120]
[394599680,1763747839667,-571.84,0.0005315,120]
[394599681,1763747839726,-500.0,0.0005315,120]
[394599682,1763747839786,-500.0,0.0005315,120]
[394599683,1763747839843,-1309.95,0.0005315,120]
[394599684,1763747839903,-500.0,0.0005315,120]
[394599685,1763747839962,-500.0,0.0005315,120]
[394599686,1763747840017,-500.0,0.0005315,120]
[394599687,1763747840077,-804.84,0.0005315,120]
[394599688,1763747840139,-515.68851798,0.0005315,60]
[394599689,1763747840199,-506.32287573,0.0005315,120]
[394599690,1763747840261,-590.59,0.0005315,120]
[394599691,1763747840317,-500.0,0.0005315,120]
[394599692,1763747840378,-500.0,0.0005315,120]
[394599693,1763747840441,-500.0,0.0005315,120]
[394599694,1763747840501,-500.0,0.0005315,120]
[394599695,1763747840563,-649.35,0.0005315,120]
[394599696,1763747840624,-500.0,0.0005315,120]
[394599697,1763747840683,-1116.21,0.0005315,120]
[394599698,1763747840743,-500.0,0.0005315,120]
[394599699,1763747840802,-500.0,0.0005315,120]
[394599700,1763747840864,-500.0,0.0005315,120]
[394599701,1763747841164,-500.0,0.0005315,120]
[394599702,1763747841208,-500.0,0.0005315,120]
[394599703,1763747841251,-500.0,0.0005315,120]
[394599704,1763747841292,-981.19,0.0005315,60]
[394599705,1763747841332,-605.43,0.0005315,120]
[394599706,1763747841374,-941.61,0.0005315,120]
[394599707,1763747841416,-1341.05,0.0005315,120]
[394599708,1763747841457,-778.38,0.0005315,120]
[394599709,1763747841504,-500.0,0.0005315,120]
[394599710,1763747841546,-500.0,0.0005315,120]